fUSD/lending_fUSD_20241223
["ID","MTS","AMOUNT","RATE_DAILY","PERIOD"]
[346450327,1734979845092,-509.06,0.00017798,2]
[346450328,1734979845101,-2587.77,0.00017798,2]
[346450329,1734979845110,-2570.33,0.00017798,2]
[346450330,1734979845120,-3031.49,0.00017798,2]
[346450331,1734979845131,-1231.89,0.00017798,2]
[346450332,1734979845140,-1868.4,0.00017798,2]
[346450333,1734979845150,-1640.96,0.00017798,2]
[346450334,1734979845159,-500.0,0.00017798,2]
[346450335,1734979845169,-4544.17,0.00017798,2]
[346450336,1734979845178,-1859.53,0.00017798,2]
[346450337,1734979845187,-6633.3,0.00017798,2]
[346450338,1734979845196,-3103.99,0.00017798,2]
[346450339,1734979845205,-512.62,0.00017798,2]
[346450340,1734979845215,-1124.03,0.00017798,2]
[346450341,1734979845224,-3102.85,0.00017798,2]
[346450342,1734979845236,-2882.42,0.00017798,2]
[346450343,1734979845245,-500.0,0.00017798,2]
[346450344,1734979845254,-5478.14,0.00017798,2]
[346450345,1734979845263,-1467.6,0.00017798,2]
[346450346,1734979845273,-1076.83,0.00017798,2]
[346450347,1734979845282,-5742.8,0.00017798,2]
[346450348,1734979845291,-584.11,0.00017798,2]
[346450349,1734979845303,-752.84,0.00017798,2]
[346450350,1734979845313,-27072.74,0.00017798,2]
[346450351,1734979845322,-1711.56,0.00017798,2]
[346450352,1734979845331,-500.0,0.00017798,2]
[346450353,1734979845340,-3745.84,0.00017798,2]
[346450354,1734979845349,-1549.09,0.00017798,2]
[346450355,1734979845358,-500.0,0.00017799,2]
[346450356,1734979845367,-156.21,0.00017799,2]
[346450357,1734979845376,-500.0,0.00017799,2]
[346450358,1734979845385,-500.0,0.00017799,2]
[346450359,1734979845395,-1190.86,0.00017799,2]
[346450360,1734979845404,-500.0,0.00017799,2]
[346450361,1734979845413,-500.0,0.00017799,2]
[346450362,1734979845422,-1605.17,0.00017799,2]
[346450363,1734979845431,-607.88,0.00017799,2]
[346450364,1734979845441,-500.0,0.00017799,2]
[346450365,1734979845450,-500.0,0.00017799,2]
[346450366,1734979845459,-500.0,0.00017799,2]
[346450367,1734979845468,-500.0,0.00017799,2]
[346450368,1734979845477,-1122.28,0.00017799,2]
[346450369,1734979845488,-746.16,0.00017799,2]
[346450370,1734979845497,-500.0,0.00017799,2]
[346450371,1734979845506,-500.0,0.00017799,2]
[346450372,1734979845515,-500.0,0.00017799,2]
[346450373,1734979845524,-500.0,0.00017799,2]
[346450374,1734979845533,-500.0,0.00017799,2]
[346450375,1734979845542,-544.86,0.00017799,2]
[346450376,1734979845551,-1060.16,0.00017799,2]
[346450377,1734979845560,-500.0,0.00017799,2]
[346450378,1734979845569,-500.0,0.00017799,2]
[346450379,1734979845578,-501.55,0.00017799,2]
[346450380,1734979845587,-980.06,0.00017799,2]
[346450381,1734979845596,-885.03,0.00017799,2]
[346450382,1734979845605,-1076.04,0.00017799,2]
[346450383,1734979845614,-500.0,0.00017799,2]
[346450384,1734979845623,-594.31,0.00017799,2]
[346450385,1734979845631,-500.0,0.00017799,2]
[346450386,1734979845640,-1441.46,0.00017799,2]
[346450387,1734979845649,-770.36,0.00017799,2]
[346450388,1734979845658,-673.97,0.00017799,2]
[346450389,1734979845667,-1165.51,0.00017799,2]
[346450390,1734979845677,-500.0,0.00017799,2]
[346450391,1734979845686,-515.84,0.00017799,2]
[346450392,1734979845695,-525.08,0.00017799,2]
[346450393,1734979845704,-1383.86,0.00017799,2]
[346450394,1734979845714,-500.0,0.00017799,2]
[346450395,1734979845722,-500.0,0.00017799,2]
[346450396,1734979845733,-500.0,0.00017799,2]
[346450397,1734979845742,-500.0,0.00017799,2]
[346450398,1734979845751,-500.0,0.00017799,2]
[346450399,1734979845761,-500.0,0.00017799,2]
[346450400,1734979845770,-363.61811004,0.00017799,2]
[346450401,1734979845780,-500.0,0.00017799,2]
[346450402,1734979845789,-500.0,0.00017799,2]
[346450403,1734979845798,-500.0,0.00017799,2]
[346450404,1734979845807,-990.35,0.00017799,2]
[346450405,1734979845816,-611.78,0.00017799,2]
[346450406,1734979845826,-500.0,0.00017799,2]
[346450407,1734979845835,-500.0,0.00017799,2]
[346450408,1734979845845,-500.0,0.00017799,2]
[346450409,1734979845854,-243.41495626,0.00017799,2]
[346450410,1734979845863,-559.16,0.00017799,2]
[346450411,1734979845872,-500.0,0.00017799,2]
[346450412,1734979845882,-500.0,0.00017799,2]
[346450413,1734979845891,-500.0,0.00017799,2]
[346450414,1734979845900,-500.0,0.00017799,2]
[346450415,1734979845910,-500.0,0.00017799,2]
[346450416,1734979845919,-500.0,0.00017799,2]
[346450417,1734979845929,-529.41,0.00017799,2]
[346450418,1734979845938,-500.0,0.00017799,2]
[346450419,1734979845947,-1410.5,0.00017799,2]
[346450420,1734979845956,-698.35,0.00017799,2]
[346450421,1734979845965,-500.0,0.00017799,2]
[346450422,1734979845975,-500.0,0.00017799,2]
[346450423,1734979845984,-1043.85,0.00017799,2]
[346450424,1734979845994,-500.0,0.00017799,2]
[346450425,1734979846003,-500.0,0.00017799,2]
[346450426,1734979846012,-973.13,0.00017799,2]
[346450427,1734979846022,-886.27,0.00017799,2]
[346450428,1734979846031,-500.0,0.00017799,2]
[346450429,1734979846040,-500.0,0.00017799,2]
[346450430,1734979846049,-500.0,0.00017799,2]
[346450431,1734979846058,-508.99,0.000178,2]
[346450432,1734979846068,-550.48,0.000178,2]
[346450435,1734979846077,-500.0,0.000178,2]
[346450437,1734979846086,-1002.51,0.000178,2]
[346450438,1734979846095,-500.0,0.000178,2]
[346450440,1734979846104,-930.07,0.000178,2]
[346450442,1734979846113,-500.0,0.000178,2]
[346450444,1734979846123,-500.0,0.000178,2]
[346450446,1734979846132,-1299.4,0.000178,2]
[346450448,1734979846141,-500.0,0.000178,2]
[346450450,1734979846153,-500.0,0.000178,2]
[346450452,1734979846162,-500.0,0.000178,2]
[346450455,1734979846173,-500.0,0.000178,2]
[346450458,1734979846182,-500.0,0.000178,2]
[346450461,1734979846191,-657.82,0.000178,2]
[346450462,1734979846200,-656.85,0.000178,2]
[346450463,1734979846210,-500.0,0.000178,2]
[346450465,1734979846219,-500.0,0.000178,2]
[346450467,1734979846229,-1034.59,0.000178,2]
[346450469,1734979846240,-500.0,0.000178,2]
[346450470,1734979846250,-1707.26,0.000178,2]
[346450471,1734979846259,-500.0,0.000178,2]
[346450472,1734979846268,-174.25152465,0.000178,2]
[346450473,1734979846277,-500.0,0.000178,2]
[346450474,1734979846287,-500.0,0.000178,2]
[346450475,1734979846296,-500.0,0.000178,2]
[346450476,1734979846305,-1312.32,0.000178,2]
[346450477,1734979846314,-500.0,0.000178,2]
[346450478,1734979846323,-1337.01,0.000178,2]
[346450479,1734979846333,-1326.17,0.000178,2]
[346450480,1734979846342,-500.0,0.000178,2]
[346450481,1734979846351,-1126.36,0.000178,2]
[346450482,1734979846360,-500.0,0.000178,2]
[346450483,1734979846369,-500.0,0.000178,2]
[346450484,1734979846378,-500.0,0.000178,2]
[346450485,1734979846387,-500.0,0.000178,2]
[346450486,1734979846396,-1097.76,0.000178,2]
[346450487,1734979846405,-913.72,0.000178,2]
[346450488,1734979846415,-991.63,0.000178,2]
[346450489,1734979846424,-1194.41,0.000178,2]
[346450490,1734979846433,-500.0,0.000178,2]
[346450491,1734979846442,-500.0,0.000178,2]
[346450492,1734979846451,-1849.53,0.000178,2]
[346450493,1734979846460,-1116.49,0.000178,2]
[346450494,1734979846470,-1269.46,0.000178,2]
[346450495,1734979846479,-565.77,0.000178,2]
[346450496,1734979846490,-1061.35,0.000178,2]
[346450497,1734979846499,-1331.93,0.000178,2]
[346450498,1734979846508,-941.61,0.000178,2]
[346450499,1734979846517,-1688.43,0.000178,2]
[346450500,1734979846526,-1384.34,0.000178,2]
[346450501,1734979846535,-500.0,0.000178,2]
[346450502,1734979846544,-2415.23,0.000178,2]
[346450503,1734979846553,-500.0,0.000178,2]
[346450504,1734979846562,-847.82,0.000178,2]
[346450505,1734979846571,-500.0,0.000178,2]
[346450506,1734979846580,-525.33,0.000178,2]
[346450507,1734979846590,-500.0,0.000178,2]
[346450508,1734979846599,-2584.43,0.000178,2]
[346450509,1734979846607,-500.0,0.000178,2]
[346450510,1734979846616,-954.37,0.000178,2]
[346450511,1734979846625,-779.23,0.000178,2]
[346450512,1734979846634,-500.0,0.000178,2]
[346450513,1734979846643,-500.0,0.000178,2]
[346450514,1734979846652,-1500.51,0.000178,2]
[346450515,1734979846661,-601.33,0.000178,2]
[346450516,1734979846670,-2726.31,0.000178,2]
[346450517,1734979846679,-1150.67,0.000178,2]
[346450518,1734979846688,-500.0,0.000178,2]
[346450519,1734979846698,-1383.3,0.000178,2]
[346450520,1734979846707,-500.0,0.000178,2]
[346450521,1734979846716,-977.48,0.000178,2]
[346450522,1734979846726,-805.42,0.000178,2]
[346450523,1734979846737,-500.0,0.000178,2]
[346450524,1734979846747,-1285.22,0.000178,2]
[346450525,1734979846756,-1227.66,0.000178,2]
[346450526,1734979846765,-254.52744169,0.000178,2]
[346450527,1734979846775,-500.0,0.000178,2]
[346450528,1734979846784,-1021.62,0.000178,2]
[346450529,1734979846794,-2319.09,0.000178,2]
[346450530,1734979846803,-500.0,0.00017801,2]
[346450531,1734979846812,-500.0,0.00017801,2]
[346450532,1734979846821,-500.0,0.00017801,2]
[346450533,1734979846830,-150.0,0.00017874,2]
[346450534,1734979846839,-153.65,0.000179,2]
[346450535,1734979846848,-624.23,0.00017901,2]
[346450536,1734979846858,-2315.58512871,0.00017926,2]
[346450537,1734979846867,-302.43229845,0.00017927,2]
[346450538,1734979846876,-612.62,0.00017936,2]
[346450539,1734979846886,-150.0,0.00017951,2]
[346450540,1734979846895,-150.0,0.00017951,2]
[346450541,1734979846904,-150.0,0.00018027,2]
[346450542,1734979846913,-633.0,0.00018029,2]
[346450543,1734979846923,-565.0,0.00018029,2]
[346450544,1734979846932,-1899.0,0.00018029,2]
[346450545,1734979846942,-924.0,0.00018029,2]
[346450546,1734979846951,-3770.0,0.00018029,2]
[346450547,1734979846960,-818.0,0.00018029,2]
[346450548,1734979846969,-536.0,0.00018029,2]
[346450549,1734979846978,-1080.583,0.00018029,2]
[346450550,1734979846989,-3887.0,0.00018029,2]
[346450551,1734979846999,-150.0,0.00018029,2]
[346450552,1734979847008,-150.0,0.00018043,2]
[346450553,1734979847017,-2315.58512871,0.00018055,2]
[346450554,1734979847026,-302.43229845,0.00018056,2]
[346450555,1734979847036,-2507.95,0.0001807,2]
[346450556,1734979847045,-1816.42,0.0001807,2]
[346450557,1734979847054,-1517.1,0.0001807,2]
[346450558,1734979847064,-3079.77,0.0001807,2]
[346450559,1734979847185,-500.0,0.0001807,2]
[346450560,1734979847195,-4907.6,0.0001807,2]
[346450561,1734979847204,-2345.72,0.0001807,2]
[346450562,1734979847214,-2757.74,0.0001807,2]
[346450563,1734979847223,-4857.11,0.0001807,2]
[346450564,1734979847233,-3135.85,0.0001807,2]
[346450565,1734979847242,-2385.18,0.0001807,2]
[346450566,1734979847252,-16534.2,0.0001807,2]
[346450567,1734979847261,-2067.54,0.0001807,2]
[346450568,1734979847270,-500.0,0.00018071,2]
[346450569,1734979847279,-500.0,0.00018071,2]
[346450570,1734979847289,-500.0,0.00018071,2]
[346450571,1734979847299,-1382.62,0.00018071,2]
[346450572,1734979847308,-500.0,0.00018071,2]
[346450573,1734979847317,-539.34,0.00018071,2]
[346450574,1734979847327,-615.62,0.00018071,2]
[346450575,1734979847336,-1058.85,0.00018071,2]
[346450576,1734979847345,-664.24,0.00018071,2]
[346450577,1734979847354,-938.84,0.00018071,2]
[346450578,1734979847364,-3051.96,0.00018071,2]
[346450579,1734979847373,-13883.08,0.00018071,2]
[346450580,1734979847382,-1423.1,0.00018071,2]
[346450581,1734979847392,-1996.09,0.00018071,2]
[346450582,1734979847401,-564.14,0.00018071,2]
[346450583,1734979847411,-2073.16,0.00018071,2]
[346450584,1734979847420,-500.0,0.00018071,2]
[346450585,1734979847429,-2686.72,0.00018071,2]
[346450586,1734979847439,-500.0,0.00018071,2]
[346450587,1734979847448,-500.0,0.00018071,2]
[346450588,1734979847458,-1339.59,0.00018071,2]
[346450589,1734979847467,-1291.94,0.00018071,2]
[346450590,1734979847477,-500.0,0.00018071,2]
[346450591,1734979847486,-4276.01,0.00018071,2]
[346450592,1734979847496,-500.0,0.00018071,2]
[346450593,1734979847505,-1676.7,0.00018071,2]
[346450594,1734979847514,-500.0,0.00018071,2]
[346450595,1734979847523,-2089.19,0.00018071,2]
[346450596,1734979847533,-1399.15,0.00018071,2]
[346450597,1734979847542,-1617.15,0.00018071,2]
[346450598,1734979847551,-2940.1,0.00018071,2]
[346450599,1734979847561,-500.0,0.00018071,2]
[346450600,1734979847570,-2813.81,0.00018071,2]
[346450601,1734979847579,-777.68,0.00018071,2]
[346450602,1734979847589,-3247.15,0.00018071,2]
[346450603,1734979847598,-1000.42,0.00018071,2]
[346450604,1734979847607,-2384.44,0.00018071,2]
[346450605,1734979847617,-1948.37,0.00018071,2]
[346450606,1734979847626,-1086.16,0.00018071,2]
[346450607,1734979847635,-3176.16,0.00018071,2]
[346450608,1734979847645,-4837.04,0.00018071,2]
[346450609,1734979847654,-537.13,0.00018071,2]
[346450610,1734979847664,-5610.09,0.00018071,2]
[346450611,1734979847673,-8446.49,0.00018071,2]
[346450612,1734979847683,-943.49,0.00018071,2]
[346450613,1734979847692,-1249.67,0.00018071,2]
[346450614,1734979847701,-3008.71,0.00018071,2]
[346450615,1734979847711,-1773.91,0.00018071,2]
[346450616,1734979847720,-1318.68,0.00018071,2]
[346450617,1734979847729,-11592.63,0.00018071,2]
[346450618,1734979847741,-9616.25,0.00018071,2]
[346450619,1734979847750,-984.87,0.00018071,2]
[346450620,1734979847760,-2439.07,0.00018071,2]
[346450621,1734979847769,-8461.3,0.00018071,2]
[346450622,1734979847779,-983.52,0.00018071,2]
[346450623,1734979847788,-4795.02,0.00018071,2]
[346450624,1734979847798,-1526.14,0.00018071,2]
[346450625,1734979847807,-1678.48,0.00018071,2]
[346450626,1734979847816,-948.22,0.00018071,2]
[346450627,1734979847825,-2366.48,0.00018071,2]
[346450628,1734979847834,-500.0,0.00018071,2]
[346450629,1734979847844,-529.75,0.00018071,2]
[346450630,1734979847853,-3740.43,0.00018071,2]
[346450631,1734979847863,-3122.54,0.00018071,2]
[346450632,1734979847872,-2842.24,0.00018071,2]
[346450633,1734979847881,-2232.99,0.00018071,2]
[346450634,1734979847890,-6476.28,0.00018071,2]
[346450635,1734979847900,-1358.66,0.00018071,2]
[346450636,1734979847909,-1751.19,0.00018071,2]
[346450637,1734979847918,-8069.68,0.00018071,2]
[346450638,1734979847927,-500.0,0.00018071,2]
[346450639,1734979847937,-3157.81,0.00018071,2]
[346450640,1734979847946,-2961.91,0.00018071,2]
[346450641,1734979847955,-787.34,0.00018071,2]
[346450642,1734979847965,-2817.16,0.00018071,2]
[346450643,1734979847974,-3884.97,0.00018071,2]
[346450644,1734979847984,-10509.51,0.00018071,2]
[346450645,1734979847993,-2353.68,0.00018071,2]
[346450646,1734979848002,-1085.02,0.00018071,2]
[346450647,1734979848012,-4817.33,0.00018071,2]
[346450649,1734979848021,-500.0,0.00018071,2]
[346450650,1734979848031,-1183.72,0.00018071,2]
[346450651,1734979848040,-1916.98,0.00018071,2]
[346450652,1734979848050,-500.0,0.00018071,2]
[346450653,1734979848060,-1379.05,0.00018071,2]
[346450654,1734979848069,-2330.74,0.00018071,2]
[346450655,1734979848079,-500.94,0.00018071,2]
[346450656,1734979848089,-15067.45,0.00018071,2]
[346450657,1734979848099,-500.0,0.00018071,2]
[346450658,1734979848109,-826.73,0.00018071,2]
[346450659,1734979848120,-7000.75,0.00018071,2]
[346450660,1734979848131,-1654.85,0.00018071,2]
[346450661,1734979848141,-3790.38,0.00018071,2]
[346450662,1734979848155,-2639.73,0.00018071,2]
[346450663,1734979848165,-1530.37,0.00018071,2]
[346450664,1734979848175,-2525.52,0.00018071,2]
[346450666,1734979848185,-1270.59,0.00018071,2]
[346450667,1734979848195,-2370.53,0.00018071,2]
[346450668,1734979848205,-5863.6,0.00018071,2]
[346450669,1734979848214,-2236.24,0.00018071,2]
[346450670,1734979848224,-6361.61,0.00018071,2]
[346450671,1734979848236,-6003.85,0.00018071,2]
[346450672,1734979848245,-1186.95,0.00018071,2]
[346450673,1734979848255,-3326.94,0.00018071,2]
[346450674,1734979848264,-3078.56,0.00018071,2]
[346450676,1734979848274,-500.0,0.00018071,2]
[346450677,1734979848283,-849.49,0.00018071,2]
[346450678,1734979848293,-500.0,0.00018071,2]
[346450679,1734979848303,-670.28,0.00018071,2]
[346450680,1734979848313,-500.0,0.00018071,2]
[346450681,1734979848322,-5175.06,0.00018071,2]
[346450682,1734979848331,-2028.67,0.00018071,2]
[346450683,1734979848340,-1135.32,0.00018071,2]
[346450684,1734979848349,-5610.48,0.00018071,2]
[346450685,1734979848358,-1667.36,0.00018071,2]
[346450686,1734979848367,-749.69,0.00018071,2]
[346450687,1734979848376,-500.0,0.00018072,2]
[346450688,1734979848385,-500.0,0.00018072,2]
[346450689,1734979848395,-500.0,0.00018072,2]
[346450690,1734979848404,-587.08,0.00018072,2]
[346450691,1734979848413,-500.0,0.00018072,2]
[346450692,1734979848422,-1808.72,0.00018072,2]
[346450693,1734979848431,-500.0,0.00018072,2]
[346450694,1734979848439,-500.0,0.00018072,2]
[346450695,1734979848447,-500.0,0.00018072,2]
[346450696,1734979848456,-500.0,0.00018072,2]
[346450697,1734979848466,-500.0,0.00018072,2]
[346450698,1734979848475,-922.03,0.00018072,2]
[346450699,1734979848485,-500.0,0.00018072,2]
[346450700,1734979848495,-500.0,0.00018072,2]
[346450701,1734979848506,-666.2,0.00018072,2]
[346450702,1734979848515,-918.09,0.00018072,2]
[346450703,1734979848524,-699.65,0.00018072,2]
[346450704,1734979848534,-989.73,0.00018072,2]
[346450705,1734979848543,-719.37,0.00018072,2]
[346450706,1734979848553,-1017.66,0.00018072,2]
[346450707,1734979848562,-2889.86,0.00018072,2]
[346450708,1734979848571,-1170.6,0.00018072,2]
[346450709,1734979848581,-1438.34,0.00018072,2]
[346450710,1734979848591,-812.67,0.00018072,2]
[346450711,1734979848600,-1580.02,0.00018072,2]
[346450712,1734979848610,-520.63,0.00018072,2]
[346450713,1734979848619,-2468.08,0.00018072,2]
[346450714,1734979848629,-791.87,0.00018072,2]
[346450715,1734979848639,-1409.68,0.00018072,2]
[346450716,1734979848648,-3906.05,0.00018072,2]
[346450717,1734979848657,-500.0,0.00018072,2]
[346450718,1734979848667,-19921.1,0.00018072,2]
[346450719,1734979848676,-1611.32,0.00018072,2]
[346450720,1734979848685,-1075.07,0.00018072,2]
[346450721,1734979848695,-500.0,0.00018072,2]
[346450722,1734979848706,-2935.22,0.00018072,2]
[346450723,1734979848716,-1565.69,0.00018072,2]
[346450724,1734979848725,-2622.28,0.00018072,2]
[346450725,1734979848736,-1081.32,0.00018072,2]
[346450726,1734979848745,-1955.83,0.00018072,2]
[346450727,1734979848754,-1441.88,0.00018072,2]
[346450728,1734979848764,-1750.93,0.00018072,2]
[346450729,1734979848773,-634.75,0.00018072,2]
[346450730,1734979848782,-3592.0,0.00018072,2]
[346450731,1734979848791,-595.66872591,0.00018072,2]
[346450732,1734979848801,-1001.15,0.00018072,2]
[346450733,1734979848811,-500.0,0.00018072,2]
[346450734,1734979848821,-1569.58,0.00018072,2]
[346450735,1734979848830,-1049.39,0.00018072,2]
[346450736,1734979848840,-1218.79,0.00018072,2]
[346450737,1734979848850,-2571.7,0.00018072,2]
[346450738,1734979848860,-2298.48,0.00018072,2]
[346450739,1734979848870,-509.06,0.00018072,2]
[346450740,1734979848879,-2587.77,0.00018072,2]
[346450741,1734979848889,-2570.33,0.00018072,2]
[346450742,1734979848899,-3031.49,0.00018072,2]
[346450743,1734979848909,-1231.89,0.00018072,2]
[346450744,1734979848919,-1868.4,0.00018072,2]
[346450745,1734979848928,-1640.96,0.00018072,2]
[346450746,1734979848938,-500.0,0.00018072,2]
[346450747,1734979848948,-4544.17,0.00018072,2]
[346450748,1734979848958,-1859.53,0.00018072,2]
[346450749,1734979848968,-6633.3,0.00018072,2]
[346450750,1734979848977,-3103.99,0.00018072,2]
[346450751,1734979848989,-512.62,0.00018072,2]
[346450752,1734979848999,-1124.03,0.00018072,2]
[346450753,1734979849009,-3102.85,0.00018072,2]
[346450754,1734979849019,-2882.42,0.00018072,2]
[346450755,1734979849028,-500.0,0.00018072,2]
[346450756,1734979849037,-5478.14,0.00018072,2]
[346450757,1734979849046,-1467.6,0.00018072,2]
[346450758,1734979849056,-5742.8,0.00018072,2]
[346450759,1734979849065,-1076.83,0.00018072,2]
[346450760,1734979849074,-584.11,0.00018072,2]
[346450761,1734979849084,-752.84,0.00018072,2]
[346450762,1734979849093,-27072.74,0.00018072,2]
[346450763,1734979849103,-1711.56,0.00018072,2]
[346450764,1734979849113,-500.0,0.00018072,2]
[346450765,1734979849122,-3745.84,0.00018072,2]
[346450766,1734979849136,-1549.09,0.00018072,2]
[346450767,1734979849146,-201.31,0.00018072,2]
[346450768,1734979849156,-498.5,0.00018073,2]
[346450769,1734979849165,-314.23,0.00018073,2]
[346450770,1734979849177,-1190.86,0.00018073,2]
[346450771,1734979849186,-500.0,0.00018073,2]
[346450772,1734979849195,-500.0,0.00018073,2]
[346450774,1734979849205,-1605.17,0.00018073,2]
[346450775,1734979849215,-607.88,0.00018073,2]
[346450782,1734979849518,-500.0,0.00018073,2]
[346450783,1734979849544,-248.21755628,0.00018073,2]
[346450784,1734979849554,-500.0,0.00018073,2]
[346450785,1734979849564,-500.0,0.00018073,2]
[346450786,1734979849575,-1122.28,0.00018073,2]
[346450787,1734979849585,-746.16,0.00018073,2]
[346450788,1734979849596,-163.25,0.00018073,2]
[346450789,1734979849606,-500.0,0.00018073,2]
[346450790,1734979849616,-500.0,0.00018073,2]
[346450791,1734979849625,-500.0,0.00018073,2]
[346450792,1734979849635,-500.0,0.00018073,2]
[346450793,1734979849645,-1060.16,0.00018073,2]
[346450794,1734979849654,-193.38340766,0.00018073,2]
[346450795,1734979849664,-500.0,0.00018073,2]
[346450796,1734979849673,-501.55,0.00018073,2]
[346450797,1734979849683,-980.06,0.00018073,2]
[346450798,1734979849693,-885.03,0.00018073,2]
[346450799,1734979849702,-1076.04,0.00018073,2]
[346450800,1734979849711,-500.0,0.00018073,2]
[346450801,1734979849720,-594.31,0.00018073,2]
[346450802,1734979849730,-500.0,0.00018073,2]
[346450803,1734979849740,-1441.46,0.00018073,2]
[346450804,1734979849749,-770.36,0.00018073,2]
[346450805,1734979849758,-673.97,0.00018073,2]
[346450806,1734979849767,-1165.51,0.00018073,2]
[346450807,1734979849777,-500.0,0.00018073,2]
[346450808,1734979849786,-515.84,0.00018073,2]
[346450809,1734979849795,-525.08,0.00018073,2]
[346450810,1734979849805,-1383.86,0.00018073,2]
[346450811,1734979849814,-500.0,0.00018073,2]
[346450812,1734979849823,-500.0,0.00018073,2]
[346450813,1734979849832,-500.0,0.00018073,2]
[346450814,1734979849841,-500.0,0.00018073,2]
[346450815,1734979849850,-403.71950803,0.00018073,2]
[346450816,1734979849860,-500.0,0.00018073,2]
[346450817,1734979849869,-500.0,0.00018073,2]
[346450818,1734979849879,-500.0,0.00018073,2]
[346450819,1734979849888,-500.0,0.00018073,2]
[346450820,1734979849897,-990.35,0.00018073,2]
[346450821,1734979849907,-611.78,0.00018073,2]
[346450822,1734979849916,-500.0,0.00018073,2]
[346450823,1734979849926,-500.0,0.00018073,2]
[346450824,1734979849935,-559.16,0.00018073,2]
[346450825,1734979849944,-500.0,0.00018073,2]
[346450826,1734979849954,-500.0,0.00018073,2]
[346450827,1734979849963,-500.0,0.00018073,2]
[346450828,1734979849972,-500.0,0.00018073,2]
[346450829,1734979849981,-500.0,0.00018073,2]
[346450830,1734979849991,-500.0,0.00018073,2]
[346450831,1734979850000,-529.41,0.00018073,2]
[346450832,1734979850010,-500.0,0.00018073,2]
[346450833,1734979850019,-1410.5,0.00018073,2]
[346450834,1734979850028,-698.35,0.00018073,2]
[346450835,1734979850038,-500.0,0.00018073,2]
[346450836,1734979850047,-500.0,0.00018073,2]
[346450837,1734979850057,-1043.85,0.00018073,2]
[346450838,1734979850066,-500.0,0.00018073,2]
[346450839,1734979850076,-500.0,0.00018073,2]
[346450840,1734979850086,-973.13,0.00018073,2]
[346450841,1734979850096,-886.27,0.00018073,2]
[346450842,1734979850105,-216.63314594,0.00018073,2]
[346450843,1734979850114,-500.0,0.00018073,2]
[346450844,1734979850123,-150.94651398,0.00018073,2]
[346450845,1734979850133,-508.99,0.00018074,2]
[346450846,1734979850143,-550.48,0.00018074,2]
[346450847,1734979850155,-500.0,0.00018074,2]
[346450848,1734979850164,-1002.51,0.00018074,2]
[346450849,1734979850174,-930.07,0.00018074,2]
[346450850,1734979850184,-500.0,0.00018074,2]
[346450851,1734979850193,-1299.4,0.00018074,2]
[346450852,1734979850203,-500.0,0.00018074,2]
[346450853,1734979850212,-500.0,0.00018074,2]
[346450854,1734979850223,-500.0,0.00018074,2]
[346450855,1734979850232,-500.0,0.00018074,2]